bitfinex/quotes_ETHUSD_20250519
["timestamp","ask_amount","ask_price","bid_price","bid_amount"]
[1747691225671,47.67119789,2514.0,2513.9,68.99002752]
[1747691225878,47.67119789,2514.0,2513.9,68.44002752]
[1747691226071,47.67119789,2514.0,2513.9,66.04702752]
[1747691226275,47.67119789,2514.0,2513.9,38.28064252]
[1747691226459,47.67119789,2514.0,2513.9,35.88764252]
[1747691227254,47.67119789,2514.0,2513.9,38.28064252]
[1747691228551,33.10003984,2514.0,2513.9,38.28064252]
[1747691230844,33.10003984,2514.0,2513.9,38.83064252]
[1747691231461,18.52888179,2514.0,2513.9,38.83064252]
[1747691233759,6.607604,2514.0,2513.9,77.03770852]
[1747691234067,1e-08,2514.0,2513.9,79.02524269]
[1747691234278,1e-08,2514.0,2513.9,24.80825969]
[1747691234677,1e-08,2514.0,2513.9,22.82072552]
[1747691236398,1e-08,2514.0,2513.9,22.27072552]
[1747691237099,1e-08,2514.0,2513.9,28.23072552]
[1747691240317,1e-08,2514.0,2513.9,1.42243085]
[1747691240466,5.34772475,2514.0,2513.9,8.23706675]
[1747691240807,5.34772475,2514.0,2513.9,7.905]
[1747691243409,5.71721792,2514.0,2513.9,7.905]
[1747691243919,6.89991156,2514.0,2513.9,7.905]
[1747691244577,6.53041839,2514.0,2513.9,7.905]
[1747691259731,5.34772475,2514.0,2513.9,15.905]
[1747691260420,5.34772475,2514.0,2513.9,7.905]
[1747691268242,5.71698907,2514.0,2513.9,7.905]
[1747691268949,5.93899889,2514.0,2513.9,7.905]
[1747691269507,6.93066757,2514.0,2513.9,7.905]
[1747691272363,6.93066757,2514.0,2512.8,17.175]
[1747691272364,3.97914925,2513.1,2512.8,17.175]
[1747691272560,5.34634925,2513.1,2513.0,8.37871324]
[1747691272884,6.67676924,2513.1,2513.0,8.37871324]
[1747691273061,6.89877906,2513.1,2513.0,8.37871324]
[1747691273365,7.26804338,2513.1,2513.0,8.37871324]
[1747691273573,7.26804338,2513.1,2513.0,7.904]
[1747691280408,5.93762339,2513.1,2513.0,7.904]
[1747691280776,5.71561357,2513.1,2513.0,7.904]
[1747691282608,3.97946595,2512.9,2512.8,17.175]
[1747691283105,3.97946595,2512.9,2512.8,25.081]
[1747691284004,4.79586595,2512.9,2512.8,17.175]
[1747691284424,6.7132272,2512.9,2512.8,17.175]
[1747691284623,5.34586595,2512.9,2512.8,17.175]
[1747691284828,4.34873027,2512.9,2512.8,17.175]
[1747691284989,3.97906754,2513.2,2512.9,8.7894]
[1747691285345,3.97883261,2513.3,2513.2,0.7894]
[1747691285551,3.97861577,2513.5,2513.3,8.0]
[1747691285821,3.97851601,2513.5,2513.4,11.05544]
[1747691286952,3.97851601,2513.5,2513.4,8.7894]
[1747691288900,3.97837766,2513.6,2512.8,17.175]
[1747691288901,0.55,2513.1,2512.8,17.175]
[1747691289102,4.52946595,2512.9,2512.8,17.175]
[1747691289316,4.52763662,2512.9,2512.8,17.175]
[1747691290330,5.05755623,2512.9,2512.8,17.175]
[1747691291125,4.52763662,2512.9,2512.8,17.175]
[1747691291329,4.52763662,2512.9,2512.8,25.175]
[1747691292457,4.52763662,2512.9,2512.8,25.9485]
[1747691294222,3.97763662,2512.9,2512.8,25.9485]
[1747691296436,3.97936031,2513.0,2512.9,8.0]
[1747691296638,3.97936031,2513.0,2512.9,12.21625]
[1747691297322,3.97804121,2513.8,2513.0,0.8308]
[1747691297523,4.7666189,2514.1,2513.0,14.7958]
[1747691297524,3.97914925,2513.1,2513.0,14.7958]
[1747691300082,3.97906037,2513.2,2513.1,0.7666]
[1747691300588,3.97906037,2513.2,2513.1,8.7666]
[1747691301084,3.97906037,2513.2,2513.1,0.7666]
[1747691301969,3.97906037,2513.2,2513.1,2.45342857]
[1747691305174,3.97906037,2513.2,2513.1,8.41842857]
[1747691305793,3.97906037,2513.2,2513.1,2.45342857]
[1747691305967,3.97888756,2513.3,2513.1,8.41842857]
[1747691306167,3.97888756,2513.3,2513.2,15.898]
[1747691306483,3.97888756,2513.3,2513.2,18.32964286]
[1747691308796,3.97888756,2513.3,2513.2,10.43164286]
[1747691309097,3.97888756,2513.3,2513.2,21.862]
[1747691310414,3.97888756,2513.3,2513.2,13.862]
[1747691310595,3.97888756,2513.3,2513.2,21.862]
[1747691311200,4.52888756,2513.3,2513.2,8.0]
[1747691311398,3.97888756,2513.3,2513.2,15.898]
[1747691311581,3.97888756,2513.3,2513.2,18.8795]
[1747691312785,3.97888756,2513.3,2513.2,16.6933]
[1747691312986,3.97888756,2513.3,2513.2,15.898]
[1747691313495,4.52888756,2513.3,2513.2,15.898]
[1747691314905,3.97888756,2513.3,2513.2,15.898]
[1747691315075,3.97888756,2513.3,2513.2,33.076]
[1747691327343,4.52888756,2513.3,2513.2,39.04]
[1747691329842,3.97888756,2513.3,2513.2,39.04]
[1747691335354,3.97888756,2513.3,2513.2,39.8091]
[1747691338150,3.97888756,2513.3,2513.2,41.94578571]
[1747691338540,3.97860753,2513.5,2513.3,8.0]
[1747691338741,0.22341302,2513.6,2513.5,8.7691]
[1747691339868,3.97821408,2513.7,2513.5,8.7691]
[1747691340062,3.97821408,2513.7,2513.6,11.22726428]
[1747691340571,3.97821408,2513.7,2513.6,25.07726428]
[1747691341958,3.97821408,2513.7,2513.6,8.0]
[1747691342152,4.78751408,2513.7,2513.6,13.849]
[1747691342470,5.33751408,2513.7,2513.6,13.849]
[1747691342665,4.52835773,2513.6,2513.5,0.47471324]
[1747691342963,4.52835773,2513.6,2513.5,8.36071324]
[1747691343167,5.89490185,2513.6,2513.5,8.36071324]
[1747691343761,6.26641346,2513.6,2513.5,8.36071324]
[1747691344158,6.26641346,2513.6,2513.5,7.886]
[1747691344365,6.48937009,2513.6,2513.5,7.886]
[1747691347372,4.57282597,2513.6,2513.5,7.886]
[1747691348975,4.57099664,2513.6,2513.5,7.886]
[1747691349538,4.57099664,2513.6,2513.5,15.886]
[1747691349742,3.9765284,2513.6,2513.5,15.886]
[1747691353678,3.97752434,2514.2,2513.6,8.0]
[1747691353975,1.4345797,2514.8,2514.0,10.13668571]
[1747691354143,3.97725012,2514.3,2514.2,8.0]
[1747691354344,3.97725012,2514.3,2514.2,25.176]
[1747691355159,3.97725012,2514.3,2514.2,27.31268571]
[1747691355347,3.97725012,2514.3,2514.2,29.1067219]
[1747691355946,3.92725012,2514.3,2514.2,29.1067219]
[1747691360580,3.92725012,2514.3,2514.2,29.9495219]
[1747691360767,3.92725012,2514.3,2514.2,27.81283619]
[1747691364355,3.92725012,2514.3,2514.2,25.176]
[1747691364557,3.92725012,2514.3,2514.2,39.009]
[1747691368699,0.6,2514.9,2514.3,0.823]
[1747691368700,0.05,2514.9,2514.3,0.823]
[1747691368864,3.97700962,2514.5,2514.4,8.0]
[1747691369603,3.97700962,2514.5,2514.4,21.832]
[1747691374008,3.97700962,2514.5,2514.4,21.831]
[1747691377789,3.97700962,2514.5,2514.4,8.0]
[1747691378026,3.97700962,2514.5,2514.4,21.83]
[1747691381918,3.97700962,2514.5,2514.4,38.998]
[1747691382924,3.97700962,2514.5,2514.4,8.0]
[1747691383091,4.78680962,2514.5,2514.4,38.998]
[1747691383828,3.97700962,2514.5,2514.4,38.998]
[1747691387093,4.76080962,2514.5,2514.4,38.998]
[1747691388037,3.97700962,2514.5,2514.4,38.998]
[1747691392444,4.79180962,2514.5,2514.4,25.168]
[1747691392747,6.22112065,2514.5,2514.4,38.984]
[1747691393042,6.22112065,2514.5,2514.4,25.023]
[1747691393845,3.97700962,2514.5,2514.4,25.023]
[1747691394226,4.34896858,2514.5,2514.4,25.023]
[1747691397555,4.81870962,2514.5,2514.4,25.023]
[1747691397760,5.19077214,2514.5,2514.4,25.023]
[1747691398852,5.74077214,2514.5,2514.4,25.023]
[1747691399051,6.71252942,2514.5,2514.4,25.023]
[1747691400644,6.93573723,2514.5,2514.4,25.023]
[1747691408098,6.93573723,2514.5,2514.4,17.168]
[1747691408300,6.93573723,2514.5,2514.4,25.024]
[1747691413109,6.93573723,2514.5,2514.4,7.856]
[1747691413907,6.71252942,2514.5,2514.4,7.856]
[1747691414113,6.3404669,2514.5,2514.4,7.856]
[1747691415210,6.93530901,2514.5,2514.4,7.856]
[1747691415414,5.96355173,2514.5,2514.4,7.856]
[1747691415629,5.12185173,2514.5,2514.4,7.856]
[1747691424030,4.89878594,2514.5,2514.4,7.856]
[1747691424226,4.52700962,2514.5,2514.4,7.856]
[1747691424592,4.75025982,2514.5,2514.4,7.856]
[1747691425834,4.75025982,2514.5,2514.4,15.856]
[1747691426736,5.12234238,2514.5,2514.4,15.856]
[1747691428011,5.12234238,2514.5,2514.4,16.6794]
[1747691428838,4.89909218,2514.5,2514.4,16.6794]
[1747691429337,4.34909218,2514.5,2514.4,16.6794]
[1747691429543,4.34909218,2514.5,2514.4,20.06444]
[1747691430140,3.97700962,2514.5,2514.4,20.06444]
[1747691432634,3.97682163,2514.6,2514.5,8.8407]
[1747691434151,3.97682163,2514.6,2514.5,13.316019]
[1747691434312,3.97682163,2514.6,2514.5,14.11361519]
[1747691434862,0.05,2514.9,2514.6,0.8216]
[1747691436658,0.05,2514.9,2514.7,8.02021063]
[1747691436831,0.05,2514.9,2514.8,17.91706748]
[1747691437030,0.05,2514.9,2514.8,27.94000448]
[1747691437236,0.05,2514.9,2514.8,31.32504448]
[1747691437563,0.05,2514.9,2514.8,28.143877]
[1747691438046,0.05,2514.9,2514.8,31.32504448]
[1747691438253,0.05,2514.9,2514.8,28.143877]
[1747691438564,0.05,2514.9,2514.8,31.32504448]
[1747691442359,0.05,2514.9,2514.8,37.71699239]
[1747691442864,3.97521815,2515.6,2515.2,0.7749]
[1747691443072,3.97491803,2515.8,2515.5,10.90568314]
[1747691443245,0.05,2515.9,2515.7,2.13078314]
[1747691443454,4.02472077,2515.9,2515.8,22.5729]
[1747691445263,0.05,2515.9,2515.8,22.5729]
[1747691445467,0.05,2515.9,2515.8,25.3612813]
[1747691445774,0.05,2515.9,2515.8,25.4040813]
[1747691446281,0.05,2515.9,2515.8,28.3524093]
[1747691446589,0.05,2515.9,2515.8,28.6897473]
[1747691447144,0.05,2515.9,2515.8,31.86965031]
[1747691447375,0.05,2515.9,2515.8,28.6897473]
[1747691448237,0.05,2515.9,2515.8,32.20146627]
[1747691448844,3.97329942,2516.8,2516.2,0.8031]
[1747691449040,3.97346214,2516.7,2516.5,0.8031]
[1747691449275,3.97332784,2516.8,2516.6,16.83468967]
[1747691449445,4.02322105,2516.9,2516.7,2.93388314]
[1747691449639,4.02322105,2516.9,2516.8,13.958]
[1747691449844,0.05,2516.9,2516.8,13.958]
[1747691450043,0.05,2516.9,2516.8,21.2121514]
[1747691450489,4.02314156,2516.9,2516.8,10.9043414]
[1747691450775,4.02314156,2516.9,2516.8,21.791]
[1747691455810,4.02314156,2516.9,2516.8,8.0]
[1747691455961,4.02314156,2516.9,2516.8,21.775]
[1747691456901,4.02314156,2516.9,2516.8,8.0]
[1747691457074,4.02314156,2516.9,2516.8,16.6178]
[1747691457476,4.02314156,2516.9,2516.8,15.818]
[1747691460302,4.02314156,2516.9,2516.8,8.0]
[1747691460495,4.02314156,2516.9,2516.8,15.817]
[1747691460699,4.57314156,2516.9,2516.8,15.817]
[1747691461020,4.57314156,2516.9,2516.3,17.161]
[1747691461021,4.77123101,2516.4,2516.3,17.161]
[1747691461171,4.77123101,2516.4,2516.3,24.978]
[1747691461700,4.77123101,2516.4,2516.3,32.978]
[1747691462114,5.32123101,2516.4,2516.3,32.978]
[1747691463494,5.32123101,2516.4,2516.3,25.161]
[1747691463694,5.32123101,2516.4,2516.3,32.978]
[1747691464318,5.32123101,2516.4,2516.3,24.978]
[1747691464898,5.32123101,2516.4,2516.3,32.978]
[1747691465508,5.32123101,2516.4,2516.3,25.161]
[1747691465707,5.32123101,2516.4,2516.3,32.978]
[1747691467201,4.52393101,2516.4,2516.3,32.978]
[1747691467622,3.97393101,2516.4,2516.3,32.978]
[1747691467827,3.97393101,2516.4,2516.3,33.7497]
[1747691468363,3.97379908,2516.5,2516.4,8.0]
[1747691468364,3.97385595,2516.5,2516.4,8.0]
[1747691470124,3.97364018,2516.6,2516.4,11.565189]
[1747691470332,3.97364018,2516.6,2516.5,10.13078314]
[1747691470543,3.97364018,2516.6,2516.5,15.38311214]
[1747691470743,3.9734693,2516.7,2516.5,2.90248314]
[1747691470948,3.97361519,2516.6,2516.5,2.90248314]
[1747691471236,3.97361519,2516.6,2516.5,3.49707102]
[1747691471443,3.97361519,2516.6,2516.5,17.27007102]
[1747691471734,3.9734693,2516.7,2516.6,8.0]
[1747691472942,3.9734693,2516.7,2516.6,10.466207]
[1747691473141,0.05,2516.9,2516.7,0.7989]
[1747691473344,4.02315664,2516.9,2516.8,11.25729384]
[1747691473514,0.05,2516.9,2516.8,12.05619384]
[1747691474661,0.05,2516.9,2516.8,15.32569484]
[1747691478311,0.05,2516.9,2516.8,21.71737896]
[1747691481347,0.05,2516.9,2516.8,15.65737896]
[1747691481916,4.02314156,2516.9,2516.8,15.65737896]
[1747691482115,4.02314156,2516.9,2516.8,20.45716396]
[1747691482719,4.02314156,2516.9,2516.8,20.92961039]
[1747691483452,0.05,2516.9,2516.8,20.92961039]
[1747691483629,0.05,2516.9,2516.8,18.81532439]
[1747691484134,0.05,2516.9,2516.8,26.91491239]
[1747691484346,0.05,2516.9,2516.8,32.97491239]
[1747691484650,0.05,2516.9,2516.8,29.78338239]
[1747691484953,0.05,2516.9,2516.8,28.63223739]
[1747691485851,0.05,2516.9,2516.8,28.63123739]
[1747691486351,0.05,2516.9,2516.8,28.15879096]
[1747691488236,0.05,2516.9,2516.8,45.30779096]
[1747691490271,0.05,2516.9,2516.8,33.29379096]
[1747691490475,0.05,2516.9,2516.8,39.24779096]
[1747691490679,4.02314156,2516.9,2516.8,39.24779096]
[1747691490970,4.02314156,2516.9,2516.8,33.29379096]
[1747691491164,0.05,2516.9,2516.8,39.7201487]
[1747691492975,0.05,2516.9,2516.8,53.5831487]
[1747691494299,4.02314156,2516.9,2516.8,53.5831487]
[1747691494454,4.02314156,2516.9,2516.8,58.4745327]
[1747691494773,4.02314156,2516.9,2516.8,54.2456167]
[1747691494947,4.02314156,2516.9,2516.8,54.40620995]
[1747691495347,4.02314156,2516.9,2516.8,53.85990995]
[1747691496360,4.02314156,2516.9,2516.8,47.34005695]
[1747691496559,0.05,2516.9,2516.8,47.00305695]
[1747691496762,4.02314156,2516.9,2516.8,46.32905695]
[1747691497490,4.02314156,2516.9,2516.8,22.16982895]
[1747691497648,4.02314156,2516.9,2516.8,35.29387796]
[1747691500679,4.02314156,2516.9,2516.8,37.92574796]
[1747691501366,4.02314156,2516.9,2516.8,45.92574796]
[1747691502349,4.02314156,2516.9,2516.8,46.55869895]
[1747691502554,4.02314156,2516.9,2516.8,45.75979895]
[1747691505991,4.02314156,2516.9,2516.8,39.47411483]
[1747691506157,4.02314156,2516.9,2516.8,44.30160413]
[1747691506855,0.05,2516.9,2516.8,44.30160413]
[1747691510195,0.05,2516.9,2516.8,50.65324367]
[1747691510396,0.05,2516.9,2516.8,53.11571093]
[1747691510566,0.05,2516.9,2516.8,45.42028825]
[1747691510759,0.05,2516.9,2516.8,52.1869761]
[1747691510963,0.05,2516.9,2516.8,35.25133656]
[1747691511162,0.05,2516.9,2516.8,44.63328825]
[1747691511389,0.05,2516.9,2516.8,44.00033726]
[1747691511763,0.05,2516.9,2516.8,30.24333726]
[1747691512096,4.02314156,2516.9,2516.8,44.00033726]
[1747691512290,0.05,2516.9,2516.8,44.00033726]
[1747691513703,4.02314156,2516.9,2516.8,44.00033726]
[1747691515415,4.02314156,2516.9,2516.8,41.36846726]
[1747691515416,0.05,2516.9,2516.8,41.36846726]
[1747691515722,0.05,2516.9,2516.8,47.53201726]
[1747691516021,4.02314156,2516.9,2516.8,46.12179526]
[1747691516385,4.02314156,2516.9,2516.8,45.32268326]
[1747691517120,4.02314156,2516.9,2516.8,44.94805326]
[1747691524426,4.02314156,2516.9,2516.8,44.74012126]
[1747691526126,4.02314156,2516.9,2516.8,45.37290649]
[1747691533233,0.05,2516.9,2516.8,46.15310649]
[1747691533917,4.02314156,2516.9,2516.8,46.15310649]
[1747691534725,0.05,2516.9,2516.8,46.15310649]
[1747691535328,0.05,2516.9,2516.8,52.21310649]
[1747691536520,0.05,2516.9,2516.8,51.58032126]
[1747691537962,0.05,2516.9,2516.8,50.50879726]
[1747691549083,0.05,2516.9,2516.8,44.44879726]
[1747691549671,0.05,2516.9,2516.8,45.72299714]
[1747691553531,0.05,2516.9,2516.8,29.48330563]
[1747691553737,0.05,2516.9,2516.8,43.21430563]
[1747691554073,0.05,2516.9,2516.8,44.91679714]
[1747691554852,0.05,2516.9,2516.8,29.48330563]
[1747691555073,4.02314156,2516.9,2516.8,40.91417563]
[1747691555568,4.02314156,2516.9,2516.8,34.96017563]
[1747691555773,4.02314156,2516.9,2516.8,40.58249151]
[1747691556156,4.02314156,2516.9,2516.8,34.62849151]
[1747691556364,4.81854156,2516.9,2516.8,40.58249151]
[1747691557653,4.81854156,2516.9,2516.8,38.88]
[1747691558353,4.81854156,2516.9,2516.8,39.35478043]
[1747691558547,6.24770761,2516.9,2516.8,17.62378043]
[1747691558777,6.24770761,2516.9,2516.8,31.35578043]
[1747691559480,6.24770761,2516.9,2516.8,25.40178043]
[1747691559679,6.61913093,2516.9,2516.8,25.40178043]
[1747691560796,6.24770761,2516.9,2516.8,25.40178043]
[1747691560951,6.24770761,2516.9,2516.8,24.927]
[1747691562153,6.47039379,2516.9,2516.8,24.927]
[1747691562790,5.34403101,2516.4,2516.3,0.47478043]
[1747691562993,6.27581383,2516.4,2516.3,8.25278043]
[1747691563889,6.27581383,2516.4,2516.3,7.778]
[1747691564096,6.86872985,2516.4,2516.3,7.778]
[1747691565495,4.77696279,2516.0,2515.9,17.15]
[1747691565794,4.77696279,2516.0,2515.9,24.929]
[1747691568597,5.65210172,2516.0,2515.9,24.929]
[1747691569101,6.20210172,2516.0,2515.9,24.929]
[1747691574396,4.77696279,2516.0,2515.9,24.929]
[1747691574598,3.97456279,2516.0,2515.9,24.929]
[1747691575884,3.97446428,2516.1,2516.0,8.0]
[1747691576211,3.97431048,2516.2,2516.1,0.804]
[1747691576411,3.97431048,2516.2,2516.1,16.49864]
[1747691576580,3.97431048,2516.2,2516.1,16.50254]
[1747691577303,3.97431048,2516.2,2516.1,8.804]
[1747691580228,3.97401218,2516.4,2516.2,0.804]
[1747691580433,3.97401218,2516.4,2516.3,14.2830834]
[1747691580727,3.97401218,2516.4,2516.3,15.0870834]
[1747691580890,3.97401218,2516.4,2516.3,23.7442004]
[1747691581246,3.97401218,2516.4,2516.3,15.0870834]
[1747691581518,3.97362325,2516.6,2516.4,8.0]
[1747691581729,3.97362325,2516.6,2516.5,21.17252]
[1747691582521,4.02322828,2516.9,2516.6,8.0]
[1747691582818,4.02322828,2516.9,2516.7,21.545647]
[1747691583122,4.02322828,2516.9,2516.8,14.966403]
[1747691583303,4.02322828,2516.9,2516.8,16.29954715]
[1747691584302,4.02036028,2516.9,2516.8,16.29954715]
[1747691584505,0.047132,2516.9,2516.8,16.29954715]
[1747691585128,4.02027356,2516.9,2516.8,16.29954715]
[1747691585638,4.02027356,2516.9,2516.8,1.33314415]
[1747691586043,4.02027356,2516.9,2516.8,8.29274715]
[1747691586840,4.02027356,2516.9,2516.8,1.33314415]
[1747691587039,3.97377309,2516.5,2516.4,8.8218]
[1747691587210,3.97377309,2516.5,2516.4,16.5878]
[1747691587406,3.97377309,2516.5,2516.4,7.766]
[1747691588605,3.97408894,2516.3,2516.2,0.47478043]
[1747691588811,3.97408894,2516.3,2516.2,8.23978043]
[1747691590145,3.97408894,2516.3,2516.2,7.765]
[1747691590439,3.97408894,2516.3,2516.2,10.01953]
[1747691592367,3.97408894,2516.3,2516.2,23.97553]
[1747691593411,3.97408894,2516.3,2516.2,26.10489319]
[1747691594113,3.97408894,2516.3,2516.2,20.14889319]
[1747691594310,3.97408894,2516.3,2516.2,23.85036319]
[1747691596849,3.97341549,2516.8,2516.3,11.99900682]
[1747691597016,3.97329942,2516.8,2516.7,2.12936319]
[1747691597345,3.97329942,2516.8,2516.7,17.89536319]
[1747691598112,0.047132,2516.9,2516.8,8.7605]
[1747691598818,0.047132,2516.9,2516.8,10.776693]
[1747691599460,0.047132,2516.9,2516.8,8.7605]
[1747691600083,0.047132,2516.9,2516.8,11.41138912]
[1747691602660,0.047132,2516.9,2516.8,13.79638912]
[1747691602871,0.047132,2516.9,2516.8,13.80448899]
[1747691603079,4.02027356,2516.9,2516.8,25.20428399]
[1747691603275,4.02027356,2516.9,2516.8,0.33168412]
[1747691603583,3.9734573,2516.7,2516.6,0.47478043]
[1747691603776,5.3381573,2516.7,2516.6,8.23878043]
[1747691604895,5.3381573,2516.7,2516.6,7.764]
[1747691605797,6.67133033,2516.7,2516.6,7.764]
[1747691606485,3.97361519,2516.6,2516.5,25.151]
[1747691606798,4.52361519,2516.6,2516.5,32.904]
[1747691616724,4.52361519,2516.6,2516.5,25.151]
[1747691617086,4.52361519,2516.6,2516.5,32.905]
[1747691617313,5.85212238,2516.6,2516.5,32.905]
[1747691619221,5.85212238,2516.6,2516.5,24.905]
[1747691621525,6.62472238,2516.6,2516.5,24.905]
[1747691625141,6.62472238,2516.6,2516.5,7.754]
[1747691625947,4.52408894,2516.3,2516.2,25.155]
[1747691626153,4.52408894,2516.3,2516.2,32.91]
[1747691634060,4.89588814,2516.3,2516.2,32.91]
[1747691635456,4.52408894,2516.3,2516.2,32.91]
[1747691636762,3.97408894,2516.3,2516.2,35.83236319]
[1747691643375,4.34595112,2516.3,2516.2,35.83236319]
[1747691647488,0.37186218,2516.3,2516.2,35.83236319]
[1747691647671,3.97408894,2516.3,2516.2,35.83236319]
[1747691648396,3.97377309,2516.5,2516.4,0.7732]
[1747691648686,3.97377309,2516.5,2516.4,10.90256319]
[1747691650873,3.97377309,2516.5,2516.4,19.50823219]
[1747691651074,3.97377309,2516.5,2516.4,19.01033619]
[1747691652004,3.97377309,2516.5,2516.4,10.90256319]
[1747691652573,3.97377309,2516.5,2516.4,16.08536319]
[1747691652802,3.97377309,2516.5,2516.4,17.87536319]
[1747691652983,3.97377309,2516.5,2516.4,9.87536319]
[1747691653300,5.27587309,2516.5,2516.4,7.746]
[1747691654987,5.64730131,2516.5,2516.4,7.746]
[1747691655306,4.89520131,2516.5,2516.4,7.746]
[1747691655499,4.89520131,2516.5,2516.4,8.5378]
[1747691655806,4.89520131,2516.5,2516.4,7.746]
[1747691658439,4.89520131,2516.5,2516.4,12.03393632]
[1747691658440,4.34520131,2516.5,2516.4,12.03393632]
[1747691658582,4.34520131,2516.5,2516.4,20.03393632]
[1747691659187,3.97377309,2516.5,2516.4,20.03393632]
[1747691667121,0.047132,2516.9,2516.5,8.0]
[1747691667442,4.02027356,2516.9,2516.8,2.12936319]
[1747691672212,4.02027356,2516.9,2516.8,19.28236319]
[1747691674147,4.02027356,2516.9,2516.8,20.03556319]
[1747691674814,4.02027356,2516.9,2516.8,19.28236319]
[1747691681860,4.02027356,2516.9,2516.8,27.01736319]
[1747691682583,4.02027356,2516.9,2516.8,24.888]
[1747691694190,4.39216442,2516.9,2516.8,24.888]
[1747691697700,4.39216442,2516.9,2516.8,26.59118584]
[1747691701523,4.39216442,2516.9,2516.8,18.85618584]
[1747691701815,4.39216442,2516.9,2516.8,32.53718584]
[1747691706291,4.94216442,2516.9,2516.8,30.834]
[1747691709333,5.83368025,2516.9,2516.8,30.834]
[1747691709624,6.62948025,2516.9,2516.8,30.834]
[1747691711230,6.62948025,2516.9,2516.8,24.879]
[1747691711600,5.83368025,2516.9,2516.8,24.879]
[1747691713637,5.83368025,2516.9,2516.8,17.153]
[1747691713815,6.61058025,2516.9,2516.8,17.153]
[1747691714018,6.61058025,2516.9,2516.8,24.879]
[1747691714808,6.83377463,2516.9,2516.8,24.879]
[1747691719615,5.1653588,2516.9,2516.8,24.879]
[1747691719819,4.6153588,2516.9,2516.8,24.879]
[1747691720138,4.94216442,2516.9,2516.8,24.879]
[1747691720340,4.39216442,2516.9,2516.8,24.879]
[1747691720712,4.94216442,2516.9,2516.8,24.879]
[1747691721048,4.57027356,2516.9,2516.8,24.879]
[1747691721623,4.57027356,2516.9,2516.8,34.58218584]
[1747691721926,4.57027356,2516.9,2516.8,35.36948584]
[1747691725750,4.57027356,2516.9,2516.8,33.6663]
[1747691736862,4.57027356,2516.9,2516.8,25.153]
[1747691737160,4.9416313,2516.9,2516.8,32.868]
[1747691739167,4.57027356,2516.9,2516.8,32.868]
[1747691741147,4.94164794,2516.9,2516.8,32.868]
[1747691742835,4.57027356,2516.9,2516.8,32.868]
[1747691743172,4.02027356,2516.9,2516.8,33.6573]
[1747691743371,4.57027356,2516.9,2516.8,33.6573]
[1747691745773,4.02027356,2516.9,2516.8,25.6573]
[1747691745940,0.047132,2516.9,2516.8,25.6573]
[1747691746255,0.047132,2516.9,2516.8,29.7622]
[1747691746457,0.047132,2516.9,2516.8,25.6573]
[1747691746660,0.047132,2516.9,2516.8,29.03642663]
[1747691747039,0.047132,2516.9,2516.8,43.92384201]
[1747691748936,0.047132,2516.9,2516.8,40.74520247]
[1747691749641,0.047132,2516.9,2516.8,41.80308708]
[1747691751415,0.047132,2516.9,2516.8,51.04172662]
[1747691752215,0.047132,2516.9,2516.8,50.40868605]
[1747691752605,0.047132,2516.9,2516.8,52.86840005]
[1747691752806,0.047132,2516.9,2516.8,50.74037017]
[1747691753591,0.047132,2516.9,2516.8,52.86840005]
[1747691753795,0.047132,2516.9,2516.8,53.41918102]
[1747691754226,0.047132,2516.9,2516.8,55.80418102]
[1747691754425,3.97193914,2517.7,2517.6,10.88732988]
[1747691754731,0.05,2517.9,2517.6,23.23180956]
[1747691754919,3.97187909,2517.7,2517.6,25.39113944]
[1747691758131,3.97187909,2517.7,2517.6,22.4436]
[1747691758435,3.97187909,2517.7,2517.6,24.57162988]
[1747691758938,3.97174535,2517.8,2517.7,8.0]
[1747691760424,3.97187909,2517.7,2517.6,9.82702988]
[1747691760725,3.97187909,2517.7,2517.6,15.78102988]
[1747691765438,3.97187909,2517.7,2517.6,23.78102988]
[1747691765736,3.97187909,2517.7,2517.6,40.92702988]
[1747691766648,3.97187909,2517.7,2517.6,43.96702988]
[1747691767640,3.97187909,2517.7,2517.6,40.92702988]
[1747691768343,3.97187909,2517.7,2517.6,45.58459088]
[1747691768764,3.97187909,2517.7,2517.6,44.01059088]
[1747691770886,3.97187909,2517.7,2517.6,41.882561]
[1747691771055,3.97187909,2517.7,2517.6,44.01059088]
[1747691773651,3.97187909,2517.7,2517.6,43.58453026]
[1747691778386,3.97187909,2517.7,2517.6,40.50096926]
[1747691783286,3.97187909,2517.7,2517.6,40.97392233]
[1747691784676,3.97187909,2517.7,2517.6,40.97192233]
[1747691785004,3.97187909,2517.7,2517.6,35.01892233]
[1747691785199,3.97187909,2517.7,2517.6,27.01892233]
[1747691785364,3.97187909,2517.7,2517.6,32.97192233]
[1747691787507,0.05,2517.9,2517.6,37.13457497]
[1747691787810,0.05,2517.9,2517.8,9.70196926]
[1747691787973,4.0215636,2517.9,2517.8,13.18044926]
[1747691788393,4.0215636,2517.9,2517.8,13.65340233]
[1747691788694,4.0215636,2517.9,2517.8,10.17492233]
[1747691788860,4.0215636,2517.9,2517.8,14.09936188]
[1747691789061,4.0215636,2517.9,2517.8,10.99730588]
[1747691789262,4.0215636,2517.9,2517.8,14.10446188]
[1747691789566,4.0215636,2517.9,2517.8,10.99730588]
[1747691789763,4.0215636,2517.9,2517.8,3.42247408]
[1747691792079,4.0215636,2517.9,2517.8,6.73145408]
[1747691792894,4.0215636,2517.9,2517.8,6.35201154]
[1747691792895,0.05,2517.9,2517.8,6.35201154]
[1747691793097,0.05,2517.9,2517.8,26.76824861]
[1747691793392,3.97065632,2518.5,2518.2,0.7664]
[1747691793593,3.97065632,2518.5,2518.4,10.12713746]
[1747691797075,3.97065632,2518.5,2518.4,10.92383746]
[1747691799431,3.97026511,2518.8,2518.5,8.7705]
[1747691799707,3.97026511,2518.8,2518.7,10.12713746]
[1747691799909,3.97026511,2518.8,2518.7,13.99819446]
[1747691800112,3.97026511,2518.8,2518.7,16.4818071]
[1747691800311,4.02004863,2518.9,2518.8,8.8162]
[1747691800608,4.02004863,2518.9,2518.8,19.545]
[1747691800801,4.02004863,2518.9,2518.8,16.4992]
[1747691800982,4.02004863,2518.9,2518.8,17.32158355]
[1747691801394,4.02004863,2518.9,2518.8,20.56158355]
[1747691801813,0.05,2518.9,2518.8,23.32136155]